Workbook

Sheet PERÍODO LETIVO
B1: MEUS HORÁRIOS DE AULAS
B2: PERÍODO LETIVO DE OUTONO
C3: HORA DE INÍCIO | D3: HORA DE INTERVALO | F3: ANO
C4: 09:00:00 | D4: 60 | E4: (Em minutos)
B5: HORÁRIO | C5: SEG | D5: TER | E5: QUA | F5: QUI | G5: SEX | H5: SÁB | I5: DOM
B6: =HoraDeInício+TIME(0,(ROW(A1)-1)*HoraDeIntervalo,0) -> 09:00:00 | C6: Café da manhã | D6: Café da manhã | E6: Café da manhã | F6: Café da manhã | G6: Café da manhã
B7: 10:00:00 | C7: Gestão: Palestra Edif. B, Sala 256
B8: 11:00:00 | F8: Física: Laboratório Edif. J, Sala 309
B9: 12:00:00
B10: 13:00:00
B11: 14:00:00
B12: 15:00:00
B13: 16:00:00
B14: 17:00:00
B15: 18:00:00
B16: 19:00:00
B17: 20:00:00
B18: 21:00:00
B19: 22:00:00
B20: 23:00:00
B21: 1
B22: 1.041666667
B23: 1.083333333
B24: 1.125
B25: 1.166666667
B26: 1.208333333
B27: 1.25
B28: 1.291666667
B29: 1.333333333

Sheet CRÉDITOS
B1: FACULDADE
B2: PLANEJADOR DE CRÉDITOS
B3: Título do grau | C3: =Ano -> ANO
B4: PROGRESSO GERAL | D4: PROGRESSO GERAL
B5: =AVERAGE(Cursos[NOTA]) -> 3.5 | C5: =IFERROR(TEXT(AVERAGEIF(Cursos[CONCLUÍDO],"Sim",Cursos[NOTA]),"0,00"),"0,00")&" GPA atual" -> 3,50 GPA atual | D5: =COUNTIF(Cursos[CONCLUÍDO],"Sim")/COUNTA(Cursos[TÍTULO DO CURSO]) -> 0.6666666667 | E5: =TEXT(COUNTIF(Cursos[CONCLUÍDO],"Sim")/COUNTA(Cursos[TÍTULO DO CURSO]),"0%")&" Concluído" -> 67% Concluído
B6: Observação: O resumo de créditos a seguir é populado automaticamente pelas entradas na tabela de Cursos Universitários abaixo
B7: EXIGÊNCIAS | C7: TOTAL DE CRÉDITOS | D7: ACUMULADO | E7: NECESSÁRIO
B8: Área de concentração acadêmica primária | C8: =IF(SUMIF(Cursos[EXIGÊNCIAS],CRÉDITOS!$B8,Cursos[CRÉDITOS])=0,"0",SUMIF(Cursos[EXIGÊNCIAS],CRÉDITOS!$B8,Cursos[CRÉDITOS])) -> 4 | D8: =SUMIFS(Cursos[CRÉDITOS],Cursos[EXIGÊNCIAS],CRÉDITOS!$B8,Cursos[CONCLUÍDO],"Sim") -> 4 | E8: =SUMIF(Cursos[EXIGÊNCIAS],CRÉDITOS!$B8,Cursos[CRÉDITOS])-SUMIFS(Cursos[CRÉDITOS],Cursos[EXIGÊNCIAS],CRÉDITOS!$B8,Cursos[CONCLUÍDO],"Sim") -> 0
B9: Área de concentração acadêmica secundária | C9: =IF(SUMIF(Cursos[EXIGÊNCIAS],CRÉDITOS!$B9,Cursos[CRÉDITOS])=0,"0",SUMIF(Cursos[EXIGÊNCIAS],CRÉDITOS!$B9,Cursos[CRÉDITOS])) -> 3 | D9: =SUMIFS(Cursos[CRÉDITOS],Cursos[EXIGÊNCIAS],CRÉDITOS!$B9,Cursos[CONCLUÍDO],"Sim") -> 0 | E9: =SUMIF(Cursos[EXIGÊNCIAS],CRÉDITOS!$B9,Cursos[CRÉDITOS])-SUMIFS(Cursos[CRÉDITOS],Cursos[EXIGÊNCIAS],CRÉDITOS!$B9,Cursos[CONCLUÍDO],"Sim") -> 3
B10: Curso opcional | C10: =IF(SUMIF(Cursos[EXIGÊNCIAS],CRÉDITOS!$B10,Cursos[CRÉDITOS])=0,"0",SUMIF(Cursos[EXIGÊNCIAS],CRÉDITOS!$B10,Cursos[CRÉDITOS])) -> 2 | D10: =SUMIFS(Cursos[CRÉDITOS],Cursos[EXIGÊNCIAS],CRÉDITOS!$B10,Cursos[CONCLUÍDO],"Sim") -> 2 | E10: =SUMIF(Cursos[EXIGÊNCIAS],CRÉDITOS!$B10,Cursos[CRÉDITOS])-SUMIFS(Cursos[CRÉDITOS],Cursos[EXIGÊNCIAS],CRÉDITOS!$B10,Cursos[CONCLUÍDO],"Sim") -> 0
B11: Estudos gerais | C11: =IF(SUMIF(Cursos[EXIGÊNCIAS],CRÉDITOS!$B11,Cursos[CRÉDITOS])=0,"0",SUMIF(Cursos[EXIGÊNCIAS],CRÉDITOS!$B11,Cursos[CRÉDITOS])) -> 0 | D11: =SUMIFS(Cursos[CRÉDITOS],Cursos[EXIGÊNCIAS],CRÉDITOS!$B11,Cursos[CONCLUÍDO],"Sim") -> 0 | E11: =SUMIF(Cursos[EXIGÊNCIAS],CRÉDITOS!$B11,Cursos[CRÉDITOS])-SUMIFS(Cursos[CRÉDITOS],Cursos[EXIGÊNCIAS],CRÉDITOS!$B11,Cursos[CONCLUÍDO],"Sim") -> 0
B12: Total | C12: =SUBTOTAL(109,CRÉDITOS!$C$8:$C$11) -> 9 | D12: =SUBTOTAL(109,CRÉDITOS!$D$8:$D$11) -> 6 | E12: =SUBTOTAL(109,CRÉDITOS!$E$8:$E$11) -> 3
B13: Cursos
B14: TÍTULO DO CURSO | C14: N° CURSO | D14: EXIGÊNCIAS | E14: CRÉDITOS | F14: CONCLUÍDO | G14: NOTA | H14: PERÍODO LETIVO
B15: Curso 1 | C15: Número | D15: Área de concentração acadêmica primária | E15: 4 | F15: Sim | G15: 4.0 | H15: Período Letivo 1
B16: Curso 2 | C16: Número | D16: Área de concentração acadêmica secundária | E16: 3 | F16: Não | H16: Período Letivo 1
B17: Curso 3 | C17: Número | D17: Curso opcional | E17: 2 | F17: Sim | G17: 3.0 | H17: Período Letivo 1

Sheet ORÇAMENTO
B1: =Faculdade -> FACULDADE
B2: RASTREADOR DE ORÇAMENTO
B3: Meu orçamento | C3: =Ano -> ANO
B4: PORCENTAGEM DO RENDIMENTO GASTO
B5: =DESPESAS_LÍQUIDAS_MENSAIS/RENDA_LÍQUIDA_MENSAL -> R$ 1
B6: =B5 -> 0.7454545455
B7: RENDA LÍQUIDA MENSAL | C7: DESPESAS LÍQUIDAS MENSAIS | D7: SALDO
B8: =C10 -> R$ 2,750 | C8: ='DESPESAS LÍQUIDAS MENSAIS'!C4+'DESPESAS DO PERÍODO LETIVO'!D4 -> R$ 2,050 | D8: =RENDA_LÍQUIDA_MENSAL-DESPESAS_LÍQUIDAS_MENSAIS -> R$ 700
B9: Meses no período letivo | C9: 4
B10: RENDA MENSAL | C10: =SUM(RendaMensal[VALOR]) -> R$ 2,750
B11: ITEM | C11: VALOR
B12: Rendimento fixo | C12: R$ 1,500
B13: Assistência financeira | C13: R$ 500
B14: Empréstimos | C14: R$ 500
B15: Outras rendas | C15: R$ 250

Sheet DESPESAS LÍQUIDAS MENSAIS
B1: =Faculdade -> FACULDADE
B2: RASTREADOR DE ORÇAMENTO
B3: Despesas mensais | C3: =Ano -> ANO
B4: DESPESAS MENSAIS | C4: =SUM(DespesasMensais[VALOR]) -> R$ 1,675
B5: ITEM | C5: VALOR
B6: Aluguel | C6: R$ 300
B7: Utilitários | C7: R$ 50
B8: Celular | C8: R$ 75
B9: Supermercado | C9: R$ 250
B10: Despesas do carro | C10: R$ 50
B11: Financiamento estudantil | C11: R$ 500
B12: Cartões de crédito | C12: R$ 275
B13: Seguro | C13: R$ 125
B14: Entretenimento | C14: R$ 50
B15: Diversos | C15: R$ 0

Sheet DESPESAS DO PERÍODO LETIVO
B1: =Faculdade -> FACULDADE
B2: RASTREADOR DE ORÇAMENTO
B3: Despesas do Período Letivo | C3: =Ano -> ANO
B4: Despesas do Período Letivo (Total/Por Mês) | C4: =SUM(DespesasDoPeríodoLetivo[VALOR]) -> R$ 1,500 | D4: =SUM(DespesasDoPeríodoLetivo[POR MÊS]) -> R$ 375
B5: ITEM | C5: VALOR | D5: POR MÊS
B6: Ensino | C6: R$ 750 | D6: =DespesasDoPeríodoLetivo[[#This Row],[VALOR]]/Meses_no_período_letivo -> R$ 188
B7: Taxas de laboratório | C7: R$ 250 | D7: =DespesasDoPeríodoLetivo[[#This Row],[VALOR]]/Meses_no_período_letivo -> R$ 63
B8: Livros | C8: R$ 500 | D8: =DespesasDoPeríodoLetivo[[#This Row],[VALOR]]/Meses_no_período_letivo -> R$ 125
B9: Depósitos | C9: R$ 0 | D9: =DespesasDoPeríodoLetivo[[#This Row],[VALOR]]/Meses_no_período_letivo -> R$ 0
B10: Transporte | C10: R$ 0 | D10: =DespesasDoPeríodoLetivo[[#This Row],[VALOR]]/Meses_no_período_letivo -> R$ 0
B11: Outras taxas | C11: R$ 0 | D11: =DespesasDoPeríodoLetivo[[#This Row],[VALOR]]/Meses_no_período_letivo -> R$ 0

Sheet LIVROS
B1: =Faculdade -> FACULDADE
B2: RASTREADOR DE LIVROS
B3: Lista de Livros
B4: TÍTULO | C4: AUTOR | D4: CURSO | E4: ONDE COMPRAR? | F4: ISBN | G4: ANOTAÇÕES
B5: Título do Livro | C5: Autor | D5: Curso | E5: Localização | F5: Número
B6: Título do Livro | C6: Autor | D6: Curso | E6: Localização | F6: Número
B7: Título do Livro | C7: Autor | D7: Curso | E7: Localização | F7: Número
